Cogmind - Beta 10.2 @@@ ROGUE MODE // 2021.08.03 @ 00:35:47 Player: SilentMoose Result: Destroyed by S-10 Pest with Light Assault Rifle Performance ------------- Evolutions (0) 0 Regions Visited (2) 400 Robots Destroyed (9) 45 Value Destroyed (97) 97 Prototype IDs (0) 0 Alien Tech Used (0) 0 Bonus (0) 0 TOTAL SCORE: 542 Bonus ------- None Cogmind --------- Core Integrity 0/250 Matter 300/300 Energy 500/500 System Corruption 0% Temperature Cool (0) Movement Core (200) Ox3 Location -10/Mines Parts ------- > --- POWER (1) -------- (None) > --- PROPULSION (2) --- (None) > --- UTILITY (2) ------ Medium Storage Unit High-capacity Battery > --- WEAPON (2) ------- (None) > --- INVENTORY (8) ---- (None) Peak State ------------ > --- POWER ------------ Ion Engine > --- PROPULSION ------- Aluminum Leg Aluminum Leg > --- UTILITY ---------- Improved Terrain Scanner Seismic Analyzer > --- WEAPON ----------- Medium Laser Medium Laser > --- INVENTORY -------- Wheel Wheel Light Assault Rifle [Rating: 8] Favorites ----------- Power Light Ion Engine Engine Light Ion Engine Propulsion Aluminum Leg Leg Aluminum Leg Wheel Wheel Flight Unit Flight Unit Utility High-capacity Battery Device Improved Terrain Scanner Storage High-capacity Battery Processor Seismic Analyzer Weapon Medium Laser Energy Gun Medium Laser Energy Cannon Beam Cannon Special Melee Weapon Datajack Build | -11 -10 -10 ------- Run | Scr Mat Min Slots Evolved . | . . . Power . | . . . Propulsion . | . . . Utility . | . . . Weapon . | . . . Parts Attached 23 | 9 3 11 Power 4 | 3 . 1 Engine 4 | 3 . 1 Core . | . . . Reactor . | . . . Propulsion 7 | 2 . 5 Treads . | . . . Leg 2 | 2 . . Wheel 2 | . . 2 Hover . | . . . Flight 3 | . . 3 Utility 6 | 2 1 3 Device 2 | 1 1 . Storage 3 | . . 3 Processor 1 | 1 . . Hackware . | . . . Protection . | . . . Artifact . | . . . Weapon 6 | 2 2 2 Energy Gun 4 | 2 1 1 Energy Cannon 1 | . . 1 Ballistic Gun . | . . . Ballistic Cannon . | . . . Launcher . | . . . Special Weapon . | . . . Impact Weapon . | . . . Slashing Weapon . | . . . Piercing Weapon . | . . . Special Melee Weapon 1 | . 1 . Unidentified Prototypes . | . . . Parts Lost 12 | . 7 5 Power 2 | . 1 1 Propulsion 4 | . 2 2 Utility 1 | . 1 . Weapon 5 | . 3 2 Highest Loss Streak 7 | . 7 5 Average Slot Usage (%) 77 | . 80 75 Engine 9 | . 11 8 Leg 9 | . 24 . Wheel 4 | . . 7 Flight 10 | . . 16 Device 3 | . 8 . Storage 11 | . . 19 Processor 5 | . 14 . Energy Gun 12 | . 16 9 Energy Cannon 6 | . . 11 Special Melee Weapon 1 | . 3 . Naked Turns 20 | . . 20 Heaviest Build 19 | 10 10 19 Greatest Support 20 | 20 20 20 Greatest Overweight (x) 3 | . . 3 Average Overweight (x) . | . . . Largest Inventory Capacity 8 | 4 4 8 Average Capacity 4 | 4 4 5 Most Carried 4 | 4 4 3 Average Carried 1 | 2 2 . Final Capacity 8 | 4 4 8 Final Carried 3 | 3 2 . Class Distribution -------------------- 88% | Mutant 11% | Derelict-Mutant Dominant Class ---------------- Mutant | -10/Materials Mutant | -10/Mines Resources | -11 -10 -10 ----------- Run | Scr Mat Min Matter Collected 400 | 290 . 110 Remotely . | . . . Salvage Created 168 | 120 . 48 Parts 23 | 13 . 10 Haulers Intercepted . | . . . Recyclers Shooed . | . . . Parts Field Recycled . | . . . Retrieved Matter . | . . . Parts Self-Destructed . | . . . Prevented . | . . . Kills | -11 -10 -10 ------- Run | Scr Mat Min Combat Hostiles Destroyed 4 | 1 . 3 Guns 1 | 1 . . Cannons 3 | . . 3 Classes Destroyed 4 | 2 . 2 Builder 1 | . . 1 Tunneler 4 | 4 . . Swarmer 3 | . . 3 Grunt 1 | 1 . . Best Kill Streak 5 | 5 . 3 Combat Bots Only 3 | 1 . 3 Max Kills in Single Turn 2 | 2 . 1 Gunslinging . | . . . Exploded . | . . . Melee . | . . . Uniques/NPCs Destroyed . | . . . Combat | -11 -10 -10 -------- Run | Scr Mat Min Damage Taken 878 | 34 442 402 Core 251 | . 85 166 Absorbed by Shields . | . . . Core Remaining (%) 100 | 100 . . Volleys Fired 38 | 9 16 13 Largest 2 | 2 2 2 Hottest 100 | 100 100 100 Shots Fired 59 | 18 21 20 Gun 46 | 18 21 7 Cannon 13 | . . 13 Launcher . | . . . Special . | . . . Kinetic . | . . . Thermal 59 | 18 21 20 Explosive . | . . . Electromagnetic . | . . . Robot Hit Streak 6 | 2 6 6 Robot Miss Streak 3 | 1 3 3 Penetration Max . | . . . Secondary Targets . | . . . Shots Hit Robots 33 | 9 14 10 Core Hits 12 | 6 2 4 Critical Hits . | . . . Critical Kills . | . . . Critical Parts Destroyed . | . . . Melee Attacks 3 | . 3 . Impact . | . . . Slashing . | . . . Piercing . | . . . Sneak Attacks 3 | . 3 . Combat Hostiles . | . . . Follow-up Attacks . | . . . Damage Inflicted 417 | 138 136 143 Guns 288 | 138 129 21 Cannons 121 | . . 121 Explosions . | . . . Melee . | . . . Ramming 8 | . 7 1 Kinetic . | . . . Thermal 409 | 138 129 142 Explosive . | . . . Electromagnetic . | . . . Impact . | . . . Slashing . | . . . Piercing . | . . . Highest Corruption . | . . . Average Corruption . | . . . Corruption Purged . | . . . Overload Shots . | . . . Overflow Damage . | . . . Projectiles . | . . . Explosions . | . . . Melee . | . . . Knockbacks . | . . . Impact . | . . . Kinetic . | . . . Secondary . | . . . Self-Inflicted Damage 3 | . 3 . Shots . | . . . Rammed 2 | . 1 1 Targets Rammed 2 | . 1 1 Kicked . | . . . Crushed . | . . . Highest Temperature 199 | 156 199 145 Average Temperature 62 | 70 53 66 Received Heat Transfer 279 | 18 246 15 Siege Activations . | . . . Robots Corrupted . | . . . Combat Hostiles . | . . . Parts Fried . | . . . Impact Corruptions . | . . . Robots Melted . | . . . Combat Hostiles . | . . . Parts Melted . | . . . Heat Transferred 1086 | 407 370 309 Parts Sabotaged . | . . . Parts Stolen . | . . . Parts Stripped . | . . . Power Chain Reactions . | . . . Missiles Intercepted . | . . . Alert | -11 -10 -10 ------- Run | Scr Mat Min Peak Influence 95 | 40 41 95 Initial 26 | . 26 5 Average 40 | 20 27 68 Maximum Alert Level . | . . . Low Security (%) 100 | 100 100 100 Level 1 . | . . . Level 2 . | . . . Level 3 . | . . . Level 4 . | . . . Level 5 . | . . . High Security . | . . . Max Security . | . . . Squads Dispatched 2 | . 2 . Investigation 1 | . 1 . Extermination . | . . . Reinforcement 1 | . 1 . Assault . | . . . Garrison . | . . . Intercept . | . . . Construction Impeded . | . . . Haulers Reinforced . | . . . Stealth | -11 -10 -10 --------- Run | Scr Mat Min Distress Signals . | . . . Communications Jammed . | . . . Distress Signals . | . . . Times Spotted 15 | 1 6 8 Peak Tracking Total 4 | 1 4 3 Tactical Retreats 1 | . . 1 Traps | -11 -10 -10 ------- Run | Scr Mat Min Traps Triggered . | . . . Indirectly . | . . . Trap Hack Attempts . | . . . Triggered . | . . . Disarmed . | . . . Reprogrammed . | . . . Reused . | . . . Traps Extracted . | . . . Installed . | . . . Triggered 1 | . . 1 Machines | -11 -10 -10 ---------- Run | Scr Mat Min Machines Disabled . | . . . Max in Single Turn . | . . . Machines Sabotaged . | . . . Garrisons Compromised . | . . . Overloaded Fab Kills . | . . . Fab Network Shutdowns . | . . . Hacking | -11 -10 -10 --------- Run | Scr Mat Min Machines Accessed 2 | . 2 . Terminals 2 | . 2 . Fabricators . | . . . Repair Stations . | . . . Recycling Units . | . . . Scanalyzers . | . . . Garrison Access . | . . . Total Hacks 4 | . 4 . Successful 2 | . 2 . Failed 2 | . 2 . Catastrophic . | . . . Database Lockouts . | . . . Manual . | . . . Terminals 4 | . 4 . Fabricators . | . . . Repair Stations . | . . . Recycling Units . | . . . Scanalyzers . | . . . Garrison Access . | . . . Terminal Hacks 2 | . 2 . Robot Analysis 1 | . 1 . Locate Traps 1 | . 1 . Fabricator Hacks . | . . . Repair Station Hacks . | . . . Recycling Unit Hacks . | . . . Scanalyzer . | . . . Garrison Access Hacks . | . . . Unauthorized Hacks . | . . . Terminals . | . . . Fabricators . | . . . Repair Stations . | . . . Recycling Units . | . . . Scanalyzers . | . . . Garrison Access . | . . . Data Cores Recovered . | . . . Used . | . . . Hacking Detections 1 | . 1 . Full Trace Events 1 | . 1 . Feedback Events . | . . . Feedback Blocked . | . . . Robot Schematics Acquired . | . . . Robots Built . | . . . Matter . | . . . Time . | . . . Total Robot Build Rating . | . . . Part Schematics Acquired . | . . . Parts Built . | . . . Matter . | . . . Time . | . . . Total Part Build Rating . | . . . Parts Repaired . | . . . Time . | . . . Parts Recycled . | . . . Recycled Matter . | . . . Retrieved Matter . | . . . Retrieved Components . | . . . Parts Scanalyzed . | . . . Part Schematics Acquired . | . . . Parts Damaged . | . . . Bothacking | -11 -10 -10 ------------ Run | Scr Mat Min Used RIF Installer . | . . . Robots Hacked 1 | . 1 . Non-combat 1 | . 1 . Combat . | . . . Robot Hacks Applied 3 | . 3 . parse_system 1 | . 1 . no_distress 1 | . 1 . find_recycling 1 | . 1 . Relay Couplers Released . | . . . Robots Rewired . | . . . Allies Hacked . | . . . Hacks Repelled . | . . . Allies | -11 -10 -10 -------- Run | Scr Mat Min Total Allies . | . . . Largest Group . | . . . Highest-Rated Group . | . . . Highest-Rated Ally . | . . . Total Orders . | . . . Ally Attacks . | . . . Total Damage . | . . . Kills . | . . . Allies Corrupted . | . . . Allies Melted . | . . . Intel | -11 -10 -10 ------- Run | Scr Mat Min Robot Analysis Total 1 | . 1 . Derelict Logs Recovered . | . . . Drone Launches . | . . . Drone Recoveries . | . . . Exploration | -11 -10 -10 ------------- Run | Scr Mat Min Turns Passed 645 | 247 153 245 Spaces Moved 458 | 182 106 170 Core 138 | 38 37 63 Treads . | . . . Legs 213 | 144 69 . Wheels 19 | . . 19 Hover . | . . . Flight 88 | . . 88 Fastest Speed 50 | 50 50 50 Average Speed 102 | 105 95 104 Slowest Speed 205 | 120 120 205 Overloaded Moves . | . . . Propulsion Burnouts . | . . . Robots Hopped . | . . . Cave-ins Triggered . | . . . Exploration Rate (%) 17 | 6 17 30 Regions Visited 2 Branch Regions 1 Pre-discovered Areas . | . . . Known Exits Taken . | . . . Unknown Exits Taken 2 | 1 1 . Scrap Searched 1 | . . 1 Spaces Dug . | . . . Terrain Destroyed . | . . . Melee . | . . . Projectile . | . . . AOE . | . . . Terrain Rammed . | . . . Walls Destroyed . | . . . Machines Disabled . | . . . Actions | -11 -10 -10 --------- Run | Scr Mat Min Total 574 | 221 134 219 Wait 11 | . . 11 Move 456 | 181 105 170 Hop . | . . . Pick Up 27 | 16 3 8 Fast Attach . | . . . Attach 20 | 8 2 10 Detach 1 | . . 1 Swap 3 | 1 1 1 Drop 13 | 6 3 4 Fire 38 | 9 16 13 Melee 3 | . 3 . Ram 2 | . 1 1 Kick . | . . . Crush . | . . . Escape Stasis . | . . . Rewire . | . . . Trap . | . . . Miscellaneous . | . . . Route ------- -11/Scrapyard -10/Materials -10/Mines History --------- Turn | Location | Event 2 | -11/Scrapyard | Met Revision 17 100 | -11/Scrapyard | Discovered new exit (range 8) 248 | -11/Scrapyard | Entered Materials 313 | -10/Materials | Build established: Mutant 393 | -10/Materials | Discovered new exit (range 14) 401 | -10/Materials | Entered Mines 412 | -10/Mines | Lost 7 parts (1p2n1u3w) 458 | -10/Mines | Core integrity fell below 50% 634 | -10/Mines | Core integrity fell below 20% 646 | -10/Mines | Destroyed by S-10 Pest with Light Assault Rifle Last Messages --------------- The Med. Storage Unit has expanded your inventory capacity. Items held in inventory do not count towards total mass and therefore cannot slow you down. Dropped Wheel. Extracted 10 matter. U-05 Engineer lays Concrete. U-05 Engineer builds a Wall. U-05 Engineer lays Concrete. U-05 Engineer destroyed. Sml. Laser destroyed. Critical hit. Beam Cannon destroyed. R-06 Scavenger collects Aluminum Leg. R-06 Scavenger collects Terrain Scan Processor. R-06 Scavenger collects Wheel. R-06 Scavenger collects Terrain Scanner. Lgt. Ion Engine destroyed. Flight Unit destroyed. Slammed into S-10 Pest. [Achievement: First Step to Greatness] Map ----- +----------------------------------------------------+ | ?????????????????????????????????????????????????? | | ?????????????????????????????????????????????????? | | ??????????????????????????????###?#####??????????? | | ?????????????????????????????## ## ###????????? | | ?????????????????????????????# =! ##???????? | | ?????????????????????????????# [ ##??????? | | ?????????????????????????????# = #??????? | | ?????????????????????????????### ###* #??????? | | ???????????????????????????????# #?## #??????? | | ???????????????????????????##### #??### #??????? | | ???????????????????????????# #????# #??????? | | ?????????????????????? ????# ###### #??????? | | ?????????????????????? ???# ##### #??????? | | ?????????????????????? ???# #### #??????? | | ?????????????????????? ???# ####??????? | | ??????????????????????? #### #### ##???????? | | ?????????????????# ????# ;; ##?## #???????? | | ?????????????????# ??### ##?## #???????? | | ????????????????## ?# * #??## ##??????? | | ???????????????## ## % ##???## #??????? | | ???????????????# ; = ;#????# ##?????? | | ???????????????# # ;#????# #?????? | | ???????????????# r ;#???## #?????? | | ???????????????# %! ##### #?????? | | ??????????? #### s # #?????? | | ?????????? @ ## #?????? | | ?????????? s s #### ##????? | | ?????????????##### ### ##??# ##???? | | ?????????????????## ##?#####?### ##??? | | ??????????????????# ##????????# ##?? | | ??????????????????# ##?????????# ! #?? | | ??????????????????# ##??????????# ! #?? | | ??????????????????# ## #???????????# ! ! #?? | | ??????????????????# ##?# #???????????# =!! ##?? | | ??????????????????# ???# #????#####??# ##??? | | ??????????????????# #### ###### ##?########???? | | ??????????????????# ##???????????? | | ??????????????????# ######??????? | | ??????????????????############# ## ##?????? | | ?????????????????????????????# #?????? | | ?????????????????????????????# #?????? | | ?????????????????????????????# ##?????? | | ????????????????????????????# ####??????? | | ???????????????????????????# ##?????????? | | ??????????????????????????# #??????????? | | ?????????????????????????# #??????????? | | ????????????????????????# #??????????? | | ????????????????????????# ###??????????? | | ????????????????????????## ##????????????? | | ?????????????????????????## #?????????????? | +----------------------------------------------------+ Best States ------------- Heat Dissipation 25 Energy Generation 10 Energy Capacity 625 Matter Stores 300 Matter Capacity 300 Sight Range 16 Terrain Scan Range 16 Terrain Scan Density 60 Evasion (%) 50 Item Schematics ----------------- None Robot Schematics ------------------ None Fabricated ------------ Nothing Alien Tech Used ----------------- None Achievements -------------- First Step to Greatness One Hack Too Far Uninvited Guest Challenges ------------ None Game ------ Seed LightningTeslaAutohacker Manual? 0 Play Time 00:26:40 Cumulative 0.8 hours Start 2021.08.03 @ 00:08:50 End 2021.08.03 @ 00:35:47 Sessions 1 Manual Loads 0 Difficulty Rogue Special Mode None Game No. 1 Rogue 1 Adventurer 0 Explorer 0 Win Type - Total 0 Types 0/0/0/0/0/0/0/0/0 Lore% 0 Gallery% 1 Achievement% 1 Wizard Run 0 Options --------- ASCII 0 Keyboard 1 Movement Vi Keybinds 0 Fullscreen 2 Font 18/SmallcapsGlow Map View 76x50 Tactical HUD 0 Map Filters NONE Filters NONE Steam 1 RUN: fecf32bd-3be7-49d1-b24a-216364cff0d9